[Event "Israeli Team U18-ch 2022"]
[Site "Be'er Ya'akov"]
[Date "2022.08.14"]
[Round "1.10"]
[White "Levi, Or"]
[Black "Medovoy, Yaniv"]
[Result "1-0"]
[ECO "B29"]
[WhiteElo "1784"]
[BlackElo "1614"]
[Annotator "NA RC"]
[PlyCount "153"]
[EventDate "2022.08.14"]
[EventCountry "ISR"]
[SourceTitle "playchess.com"]
[Source "ChessBase"]
[SourceQuality "1"]
[TimeControl "3000+10"]

1. e4 {[%emt 0:00:06]} c5 {[%emt 0:00:05]} 2. Nf3 {[%emt 0:00:10]} Nf6 {[%emt 0:00:07]} 3. e5 {[%emt 0:02:03]} Nd5 {[%emt 0:00:08]} 4. Nc3 {[%emt 0:00:14]} e6 {[%emt 0:00:08]} 5. Nxd5 {[%emt 0:01:55]} exd5 {[%emt 0:00:11]} 6. d4 {[%emt 0:00:11]} Nc6 {[%emt 0:00:05]} 7. dxc5 {[%emt 0:02:27]} Bxc5 {[%emt 0:00:11]} 8. Bd3 {[%emt 0:00:23]} d6 {[%emt 0:04:08]} 9. exd6 {[%emt 0:03:25]} Qxd6 {[%emt 0:00:22]} 10. O-O {[%emt 0:00:57]} O-O {[%emt 0:01:27]} 11. c3 {[%emt 0:03:18]} h6 {[%emt 0:11:59]} 12. b4 {[%emt 0:03:42]} Bb6 {[%emt 0:01:05]} 13. b5 {[%emt 0:00:12]} Ne7 {[%emt 0:02:50]} 14. Nd4 {[%emt 0:07:04]} Qf6 {[%emt 0:14:15]} 15. Ba3 {[%emt 0:03:18]} Re8 {[%emt 0:02:29]} 16. Re1 {[%emt 0:00:51]} Bxd4 {[%emt 0:00:47]} 17. cxd4 {[%emt 0:00:09]} Be6 {[%emt 0:02:24]} 18. Bd6 {[%emt 0:02:16]} Nf5 {[%emt 0:07:45]} 19. Be5 {[%emt 0:01:02]} Qg5 {[%emt 0:00:18]} 20. Rc1 {[%emt 0:06:53]} Rac8 {[%emt 0:00:21]} 21. Rxc8 {[%emt 0:03:22]} Rxc8 {[%emt 0:00:03]} 22. g3 {[%emt 0:00:15]} Qd8 {[%emt 0:01:39]} 23. Qg4 {[%emt 0:03:06]} Qg5 {[%emt 0:00:01]} 24. Qe2 {[%emt 0:00:55]} Rc1 {[%emt 0:00:32]} 25. Rxc1 {[%emt 0:02:33]} Qxc1+ {[%emt 0:00:02]} 26. Kg2 {[%emt 0:03:43]} Qa3 {[%emt 0:00:33]} 27. Qc2 {[%emt 0:00:00]} g6 {[%emt 0:00:03]} 28. Qc7 {[%emt 0:00:00]} Qe7 {[%emt 0:00:24]} 29. Qb8+ {[%emt 0:00:00]} Qf8 {[%emt 0:00:01]} 30. Qxb7 {[%emt 0:00:00]} f6 {[%emt 0:00:09]} 31. Bxf5 {[%emt 0:00:00]} Bxf5 {[%emt 0:00:20]} 32. Qxd5+ {[%emt 0:00:00]} Qf7 {[%emt 0:00:01]} 33. Qxf7+ {[%emt 0:00:00]} Kxf7 {[%emt 0:00:01]} 34. Bb8 {[%emt 0:00:00]} Bd3 {[%emt 0:00:04]} 35. a4 {[%emt 0:00:00]} Bc2 {[%emt 0:00:01]} 36. a5 {[%emt 0:00:26]} Ba4 {[%emt 0:00:05]} 37. Bxa7 {[%emt 0:00:25]} Bxb5 {[%emt 0:00:01]} 38. Kf3 {[%emt 0:00:15]} Ke6 {[%emt 0:00:07]} 39. Ke3 {[%emt 0:00:05]} f5 {[%emt 0:01:04]} 40. Bc5 {[%emt 0:00:11]} h5 {[%emt 0:00:18]} 41. Kf4 {[%emt 0:00:01]} Kf6 {[%emt 0:00:01]} 42. d5 {[%emt 0:00:04]} Bc4 {[%emt 0:00:03]} 43. Bd4+ {[%emt 0:00:01]} Kf7 {[%emt 0:00:06]} 44. Ke5 {[%emt 0:00:03]} Ke7 {[%emt 0:00:05]} 45. Bc5+ {[%emt 0:00:16]} Kd7 {[%emt 0:00:30]} 46. Kf6 {[%emt 0:01:07]} Bxd5 {[%emt 0:00:19]} 47. Kxg6 {[%emt 0:00:02]} Kc6 {[%emt 0:00:01]} 48. Bb6 {[%emt 0:00:05]} Bf3 {[%emt 0:00:16]} 49. Kxf5 {[%emt 0:00:03]} Bg4+ {[%emt 0:00:01]} 50. Kf4 {[%emt 0:00:01]} Kd5 {[%emt 0:00:07]} 51. f3 {[%emt 0:00:06]} Bc8 {[%emt 0:00:02]} 52. Kg5 {[%emt 0:00:17]} Ke5 {[%emt 0:00:04]} 53. Kxh5 {[%emt 0:00:03]} Kf5 {[%emt 0:00:03]} 54. Bc7 {[%emt 0:00:04]} Bb7 {[%emt 0:00:04]} 55. g4+ {[%emt 0:00:13]} Kf6 {[%emt 0:00:02]} 56. f4 {[%emt 0:00:01]} Bc8 {[%emt 0:00:10]} 57. Bd8+ {[%emt 0:00:10]} Kg7 {[%emt 0:00:04]} 58. Kg5 {[%emt 0:00:01]} Kf7 {[%emt 0:00:02]} 59. h4 {[%emt 0:00:02]} Kg7 {[%emt 0:00:02]} 60. h5 {[%emt 0:00:01]} Kh7 {[%emt 0:00:04]} 61. Bf6 {[%emt 0:00:06]} Ba6 {[%emt 0:00:04]} 62. Bd4 {[%emt 0:00:05]} Bd3 {[%emt 0:00:02]} 63. Kf6 {[%emt 0:00:07]} Be2 {[%emt 0:00:07]} 64. Kg5 {[%emt 0:00:10]} Bd3 {[%emt 0:00:11]} 65. f5 {[%emt 0:00:09]} Be2 {[%emt 0:00:06]} 66. Kf4 {[%emt 0:00:18]} Bc4 {[%emt 0:00:09]} 67. Bc5 {[%emt 0:00:08]} Kg7 {[%emt 0:00:04]} 68. g5 {[%emt 0:01:04]} Kh7 {[%emt 0:00:05]} 69. Bd4 {[%emt 0:00:34]} Be2 {[%emt 0:00:04]} 70. h6 {[%emt 0:00:04]} Bc4 {[%emt 0:00:04]} 71. Ke5 {[%emt 0:00:02]} Kg8 {[%emt 0:00:01]} 72. Kf6 {[%emt 0:00:03]} Kh7 {[%emt 0:00:12]} 73. Be3 {[%emt 0:00:06]} Kg8 {[%emt 0:00:41]} 74. g6 {[%emt 0:00:04]} Kh8 {[%emt 0:00:16]} 75. Bd4 {[%emt 0:00:08]} Bb3 {[%emt 0:00:05]} 76. Ke7+ {[%emt 0:00:07]} Kg8 {[%emt 0:00:01]} 77. h7# {[%emt 0:01:12]} 1-0

[Event "Israeli Team U18-ch 2022"]
[Site "Be'er Ya'akov"]
[Date "2022.08.14"]
[Round "1.11"]
[White "Ingel, Mica Bar"]
[Black "Ater, Yuval"]
[Result "0-1"]
[ECO "B15"]
[WhiteElo "1502"]
[BlackElo "1854"]
[Annotator "NA RC"]
[PlyCount "82"]
[EventDate "2022.08.14"]
[EventCountry "ISR"]
[SourceTitle "playchess.com"]
[Source "ChessBase"]
[SourceQuality "1"]
[TimeControl "3000+10"]

1. e4 {[%emt 0:00:04]} c6 {[%emt 0:00:03]} 2. d4 {[%emt 0:00:08]} d5 {[%emt 0:00:03]} 3. Nc3 {[%emt 0:00:19]} dxe4 {[%emt 0:00:10]} 4. Nxe4 {[%emt 0:00:11]} Nf6 {[%emt 0:00:06]} 5. Nxf6+ {[%emt 0:00:19]} exf6 {[%emt 0:00:01]} 6. Nf3 {[%emt 0:01:16]} Bd6 {[%emt 0:00:09]} 7. Bd3 {[%emt 0:02:22]} Bg4 {[%emt 0:00:31]} 8. c3 {[%emt 0:01:03]} Nd7 {[%emt 0:00:24]} 9. Be3 {[%emt 0:02:38]} Qc7 {[%emt 0:00:46]} 10. h3 Bh5 11. Qc2 {[%emt 0:07:25]} Rd8 {[%emt 0:04:44]} 12. O-O-O {[%emt 0:04:52]} Nf8 {[%emt 0:02:11]} 13. Rde1 {[%emt 0:02:30]} Ne6 {[%emt 0:00:22]} 14. Kb1 {[%emt 0:03:22]} Bxf3 {[%emt 0:06:31]} 15. gxf3 {[%emt 0:00:02]} g6 {[%emt 0:00:11]} (15... Kf8 $11 {keeps the balance.}) 16. d5 $11 {[%emt 0:06:40]} (16. h4 $16) 16... cxd5 {[%emt 0:02:00]} 17. Qa4+ {[%emt 0:00:10]} Kf8 {[%emt 0:02:22]} 18. Bh6+ {[%emt 0:00:54]} Kg8 {[%emt 0:00:10]} 19. Rhg1 {[%emt 0:00:10]} Bf8 {[%emt 0:00:10]} 20. Bxf8 {[%emt 0:00:10]} Kxf8 {[%emt 0:00:10]} 21. Qxa7 {[%emt 0:00:10]} Kg7 {[%emt 0:00:10]} 22. Qe3 {[%emt 0:00:10]} Rhe8 {[%emt 0:00:10]} 23. Qd2 {[%emt 0:00:10]} Nf4 {[%emt 0:00:10]} 24. Bc2 {[%emt 0:00:10]} Rxe1+ {[%emt 0:00:10]} 25. Rxe1 {[%emt 0:00:10]} Nxh3 {[%emt 0:13:45]} 26. Rh1 {[%emt 0:11:41]} Qf4 {[%emt 0:02:47]} 27. Qe2 {[%emt 0:04:47]} Ng5 {[%emt 0:01:21]} 28. Qe7 {[%emt 0:00:23]} Rb8 {[%emt 0:01:44]} 29. Rd1 {[%emt 0:01:29]} h5 {[%emt 0:02:04]} 30. Rxd5 {[%emt 0:00:42]} Qxf3 {[%emt 0:01:12]} 31. Rd1 {[%emt 0:00:04]} h4 {[%emt 0:00:52]} 32. Qc7 {[%emt 0:00:19]} Re8 {[%emt 0:00:19]} 33. Qh2 {[%emt 0:00:22]} h3 {[%emt 0:00:45]} 34. Rg1 {[%emt 0:00:20]} Re2 {[%emt 0:09:17]} 35. Qg3 {[%emt 0:00:14]} Qxf2 {[%emt 0:00:00]} 36. Qxf2 {[%emt 0:00:09]} Rxf2 {[%emt 0:00:00]} 37. Rh1 {[%emt 0:00:09]} f5 {[%emt 0:00:00]} 38. Bb3 {[%emt 0:00:10]} h2 {[%emt 0:00:00]} 39. Bd5 {[%emt 0:00:07]} b6 {[%emt 0:00:00]} 40. a4 {[%emt 0:00:05]} Ne4 {[%emt 0:00:00]} 41. Kc1 {[%emt 0:00:12]} Rg2 {[%emt 0:00:00]} 0-1

[Event "Israeli Team U18-ch 2022"]
[Site "Be'er Ya'akov"]
[Date "2022.08.14"]
[Round "1.12"]
[White "Amitai, Ido"]
[Black "Ken-Dror, Renana"]
[Result "1-0"]
[ECO "B16"]
[WhiteElo "1664"]
[BlackElo "1355"]
[Annotator "NA RC"]
[PlyCount "86"]
[EventDate "2022.08.14"]
[EventCountry "ISR"]
[SourceTitle "playchess.com"]
[Source "ChessBase"]
[SourceQuality "1"]
[TimeControl "3000+10"]

1. e4 {[%emt 0:00:02]} c6 {[%emt 0:00:08]} 2. Nf3 {[%emt 0:00:08]} d5 {[%emt 0:00:33]} 3. Nc3 {[%emt 0:00:07]} dxe4 {[%emt 0:01:31]} 4. Nxe4 {[%emt 0:00:10]} Nf6 {[%emt 0:00:10]} 5. Nxf6+ {[%emt 0:00:09]} gxf6 {[%emt 0:01:00]} 6. d4 {[%emt 0:00:31]} Bg4 {[%emt 0:01:56]} 7. c3 {[%emt 0:00:30]} e6 {[%emt 0:02:10]} 8. Bf4 {[%emt 0:01:16]} Bd6 {[%emt 0:00:19]} 9. Bg3 {[%emt 0:00:34]} Qc7 {[%emt 0:01:31]} 10. Bd3 {[%emt 0:03:08]} Nd7 {[%emt 0:00:22]} 11. Qc2 {[%emt 0:06:06]} O-O-O {[%emt 0:04:43]} 12. O-O-O {[%emt 0:03:56]} Nb6 {[%emt 0:06:06]} 13. Kb1 {[%emt 0:03:31]} h6 {[%emt 0:04:10]} 14. Rhe1 {[%emt 0:04:47]} Kb8 {[%emt 0:07:44]} 15. Rd2 {[%emt 0:05:35]} Bxf3 {[%emt 0:00:32]} 16. gxf3 {[%emt 0:00:21]} Nd5 {[%emt 0:00:30]} 17. Qb3 {[%emt 0:04:13]} h5 {[%emt 0:03:37]} 18. c4 {[%emt 0:03:53]} Ne7 {[%emt 0:02:14]} 19. Bh4 {[%emt 0:07:52]} Bxh2 {[%emt 0:14:04]} 20. Bxf6 {[%emt 0:00:27]} Rhe8 {[%emt 0:00:00]} 21. Re4 {[%emt 0:01:15]} Rd7 {[%emt 0:00:00]} 22. Rh4 {[%emt 0:00:17]} Ng8 {[%emt 0:00:00]} 23. Rxh2 {[%emt 0:02:09]} Nxf6 {[%emt 0:00:00]} 24. Rh4 {[%emt 0:00:06]} Red8 {[%emt 0:00:00]} 25. Be2 {[%emt 0:00:22]} Qa5 {[%emt 0:01:00]} 26. Rd1 {[%emt 0:03:05]} Qg5 {[%emt 0:00:00]} 27. Rhh1 {[%emt 0:00:00]} Rxd4 {[%emt 0:00:00]} 28. Rdg1 {[%emt 0:00:04]} Qf5+ {[%emt 0:00:00]} 29. Ka1 {[%emt 0:00:02]} Rd2 {[%emt 0:00:00]} 30. Qe3 {[%emt 0:00:09]} Qc2 {[%emt 0:00:00]} 31. Qe5+ {[%emt 0:00:11]} Kc8 {[%emt 0:00:00]} 32. Re1 {[%emt 0:00:12]} Nd7 {[%emt 0:00:00]} 33. Qg7 {[%emt 0:00:18]} f6 {[%emt 0:00:00]} 34. Rb1 {[%emt 0:00:06]} Rxe2 {[%emt 0:00:00]} 35. Rhc1 {[%emt 0:00:06]} Qd3 {[%emt 0:00:49]} 36. Qg3 {[%emt 0:00:04]} Rd2 {[%emt 0:00:23]} 37. Qg1 {[%emt 0:00:12]} Kb8 {[%emt 0:00:16]} 38. Qh2+ {[%emt 0:00:02]} Qd6 {[%emt 0:00:05]} 39. Qxh5 {[%emt 0:00:02]} Rxf2 {[%emt 0:00:14]} 40. Rd1 {[%emt 0:00:07]} Rd2 {[%emt 0:00:43]} 41. Re1 {[%emt 0:00:55]} e5 {[%emt 0:00:00]} 42. Qh4 {[%emt 0:00:00]} Nc5 {[%emt 0:00:00]} 43. f4 {[%emt 0:00:00]} Rd1 {[%emt 0:00:30]} 1-0

[Event "Israeli Team U18-ch 2022"]
[Site "Be'er Ya'akov"]
[Date "2022.08.14"]
[Round "1.13"]
[White "Sherman, Reem"]
[Black "Weber, Yonatan"]
[Result "1-0"]
[ECO "B89"]
[WhiteElo "2071"]
[BlackElo "1693"]
[Annotator "TA"]
[PlyCount "77"]
[EventDate "2022.08.14"]
[EventCountry "ISR"]
[SourceTitle "playchess.com"]
[Source "ChessBase"]
[SourceQuality "1"]
[TimeControl "3000+10"]

{[%evp 25,77,-56,-37,-37,0,0,0,0,0,-41,-39,-58,-64,-87,-83,-79,-82,-102,-72,-70,-68,-68,-65,-82,-65,-120,-110,-124,-125,-594,-562,-587,-578,-484,-190,-195,-40,-35,0,0,433,198,189,199,185,193,281,268,29992,29993,29997,29998,29998,29999]} 1. e4 {[%emt 0:00:05]} c5 {[%emt 0:00:11]} 2. Nf3 {[%emt 0:00:05]} Nc6 {[%emt 0:00:10]} 3. d4 {[%emt 0:00:06]} cxd4 {[%emt 0:00:14]} 4. Nxd4 {[%emt 0:00:06]} Nf6 {[%emt 0:00:09]} 5. Nc3 {[%emt 0:00:06]} d6 {[%emt 0:00:08]} 6. Bc4 {[%emt 0:00:13]} e6 {[%emt 0:00:11]} 7. Be3 {[%emt 0:00:13]} a6 {[%emt 0:00:51]} 8. Qe2 {[%emt 0:00:36]} Qc7 {[%emt 0:01:31]} 9. O-O-O {[%emt 0:02:10]} Na5 {[%emt 0:00:15]} 10. Bb3 {[%emt 0:00:35]} b5 {[%emt 0:02:45]} 11. f3 {[%emt 0:04:59]} Be7 {[%emt 0:05:19]} 12. g4 {[%emt 0:00:51]} O-O {[%emt 0:03:35]} 13. h4 {[%emt 0:01:45]} Nxb3+ {[%emt 0:01:14]} 14. axb3 {[%emt 0:01:37] B89: Sicilian: Velimirovic Attack.} b4 {[%emt 0:02:19]} 15. Na4 {[%emt 0:01:42] [#]} d5 $146 {[%emt 0:01:05] Inhibits Qc4.} ({Predecessor:} 15... Nd7 16. g5 Nc5 17. Kb1 Bd7 18. g6 fxg6 19. Qg2 Nxa4 20. bxa4 e5 21. Nb3 Bxa4 22. h5 gxh5 23. Rxh5 Be8 24. Rh3 a5 25. Rg1 Bf6 26. f4 a4 27. Nc1 a3 28. f5 axb2 29. Nb3 Bf7 30. Bh6 Bxb3 31. Rxb3 Kh8 32. Be3 Qc3 {0-1 (32) Trammell,G-Wolff,P (2565) Las Vegas 1996}) 16. e5 {[%emt 0:04:27] The position is equal.} Nd7 {[%emt 0:11:20]} 17. f4 {[%emt 0:02:07]} (17. Bg5 $5 {[%cal Rg5e7]} Re8 18. Bxe7 Rxe7 19. f4 $11) 17... Nc5 {[%emt 0:00:52]} 18. Nxc5 {[%emt 0:01:47]} Bxc5 {[%emt 0:00:14]} 19. Qf2 {[%emt 0:10:47]} Bd7 {[%emt 0:10:22]} 20. Nf3 {[%emt 0:09:48]} Be7 {[%emt 0:05:15]} 21. Bd4 {[%emt 0:03:58]} a5 {[%emt 0:01:20]} 22. Kd2 {[%emt 0:01:17]} Rfc8 {[%emt 0:03:04]} 23. Rc1 {[%emt 0:00:09]} a4 {[%emt 0:00:39]} 24. bxa4 {[%emt 0:01:19]} Bxa4 {[%emt 0:00:35]} 25. Ne1 {[%emt 0:00:07]} ({White should try} 25. b3 $1 $15) 25... b3 {[%emt 0:00:25][%cal Rb3c2]} 26. c3 {[%emt 0:00:09]} Bb5 {[%emt 0:00:06] And now ...Qc4 would win.} 27. f5 $2 {[%emt 0:00:50][%mdl 8192]} (27. Ke3 $17) 27... Ra2 $19 {[%emt 0:00:16]} 28. Rb1 {[%emt 0:00:02]} Ba3 {[%emt 0:00:13]} 29. Ke3 {[%emt 0:00:17]} Ra8 $2 {[%emt 0:00:11]} (29... f6 30. fxe6 Re8) 30. Nf3 {[%emt 0:00:50]} Qc4 $2 {[%emt 0:00:05]} ({Better is} 30... Bc5 $19 {aiming for ...f6.} 31. Rhd1 Re8) 31. Rhd1 $1 $15 {[%emt 0:00:05][%cal Bh1d1,Bd1g1,Bg1g7][%mdl 32]} exf5 {[%emt 0:00:14]} 32. gxf5 {[%emt 0:00:06]} Bd7 $2 {[%emt 0:00:10][%mdl 8192]} (32... f6 $11 33. e6 Bd6) 33. Nd2 {[%emt 0:00:27]} (33. e6 $142 fxe6 34. Ne5) 33... Qc8 $18 {[%emt 0:00:09]} 34. bxa3 {[%emt 0:00:38] Strongly threatening e6.} Bxf5 {[%emt 0:00:06]} 35. Rxb3 {[%emt 0:00:29]} Bc2 {[%emt 0:00:12] [#]} (35... Be6 {keeps fighting.} 36. Rg1 Bg4) 36. Rg1 $1 {[%emt 0:00:08][%cal Og1g7] Rxg7+! would kill now.} Bxb3 $2 {[%emt 0:00:25] [#]} (36... Bg6 $18 37. Qf3 (37. Qf1 f6 $16) 37... Qa6) 37. Rxg7+ $3 {[%emt 0:00:25][%mdl 576] Decoy. White mates.} Kxg7 {[%emt 0:00:00]} (37... Kh8 38. Rg3) 38. e6+ $1 {[%emt 0:00:02][%mdl 64] Discovered Attack} f6 {[%emt 0:00:20]} 39. Qxf6+ {[%emt 0:01:17] Weighted Error Value: White=0.44/Black=0.71} 1-0

[Event "Israeli Team U18-ch 2022"]
[Site "Be'er Ya'akov"]
[Date "2022.08.14"]
[Round "1.14"]
[White "Sella, Eyal"]
[Black "Shteiman, Yuval"]
[Result "0-1"]
[ECO "C01"]
[WhiteElo "1432"]
[BlackElo "2034"]
[Annotator "RC"]
[PlyCount "50"]
[EventDate "2022.08.14"]
[EventCountry "ISR"]
[SourceTitle "playchess.com"]
[Source "ChessBase"]
[SourceQuality "1"]
[TimeControl "3000+10"]

1. e4 {[%emt 0:00:03]} e6 {[%emt 0:00:08]} 2. d4 {[%emt 0:00:04]} d5 {[%emt 0:00:04]} 3. exd5 {[%emt 0:00:04]} exd5 {[%emt 0:00:04]} 4. Nf3 {[%emt 0:00:06]} Nf6 {[%emt 0:00:05]} 5. c4 {[%emt 0:00:04]} c6 {[%emt 0:01:17]} 6. Nc3 {[%emt 0:00:09]} Bb4 {[%emt 0:04:46]} 7. Qb3 {[%emt 0:04:33]} Bxc3+ 8. bxc3 {[%emt 0:00:30]} O-O {[%emt 0:03:26]} 9. Be2 {[%emt 0:02:38]} Re8 {[%emt 0:04:36]} 10. Ne5 {[%emt 0:06:27]} Nbd7 {[%emt 0:03:04]} 11. f4 {[%emt 0:01:18]} Ne4 {[%emt 0:06:59]} 12. O-O {[%emt 0:04:06]} Ndf6 {[%emt 0:01:38]} 13. g4 {[%emt 0:02:35]} dxc4 {[%emt 0:05:45]} 14. Bxc4 {[%emt 0:03:06]} Nd5 {[%emt 0:00:46]} 15. f5 {[%emt 0:05:11]} Nexc3 {[%emt 0:05:26]} 16. Nxf7 {[%emt 0:05:32]} Qb6 {[%emt 0:08:39]} 17. Qxb6 {[%emt 0:03:56]} axb6 {[%emt 0:00:07]} 18. Nd6 {[%emt 0:02:18]} Rd8 {[%emt 0:00:11]} 19. Bf4 {[%emt 0:02:41]} Kf8 {[%emt 0:02:51]} 20. Be5 {[%emt 0:00:53]} Ne3 {[%emt 0:00:38]} 21. f6 {[%emt 0:01:22]} Nxc4 {[%emt 0:00:07]} 22. fxg7+ {[%emt 0:00:08]} Kg8 {[%emt 0:00:01]} 23. Nxc4 {[%emt 0:00:31]} Be6 {[%emt 0:00:22]} 24. Nd6 {[%emt 0:01:00]} Ne2+ {[%emt 0:00:26]} 25. Kh1 {[%emt 0:01:53]} Bd5+ {[%emt 0:00:08]} 0-1

[Event "Israeli Team U18-ch 2022"]
[Site "Be'er Ya'akov"]
[Date "2022.08.14"]
[Round "1.15"]
[White "Friedland, Eldar"]
[Black "Blumenthal, Michael"]
[Result "1-0"]
[ECO "A37"]
[WhiteElo "1990"]
[BlackElo "1365"]
[Annotator "TA"]
[PlyCount "101"]
[EventDate "2022.08.14"]
[EventCountry "ISR"]
[SourceTitle "playchess.com"]
[Source "ChessBase"]
[SourceQuality "1"]
[TimeControl "3000+10"]

{[%evp 12,101,0,0,33,27,15,29,37,33,27,30,31,4,56,33,56,51,50,62,59,47,56,26,97,95,87,101,93,88,96,108,214,222,228,228,227,227,232,215,224,212,194,142,148,141,146,139,165,156,236,189,206,197,220,202,223,181,198,183,195,193,247,244,255,253,238,237,532,0,375,239,191,75,647,645,684,612,557,532,503,425,29979,29980,29980,29981,29981,29982,29981,29982,29985,29986]} 1. c4 {[%emt 0:00:09]} c5 {[%emt 0:00:07]} 2. Nf3 {[%emt 0:00:08]} Nc6 {[%emt 0:00:09]} 3. g3 {[%emt 0:00:10]} g6 {[%emt 0:00:06]} 4. Bg2 {[%emt 0:00:14]} Bg7 {[%emt 0:00:12]} 5. Nc3 {[%emt 0:00:13][%cal Bb1c3,Bc3b5,Bb5d4][%mdl 32]} e6 {[%emt 0:00:26]} 6. d4 {[%emt 0:02:57]} cxd4 {[%emt 0:00:39]} 7. Nb5 {[%emt 0:00:19]} d6 {[%emt 0:00:04] A37: Symmetrical English vs ...g6: 4 Bg2 Bg7 5 Nf3.} 8. Nfxd4 {[%emt 0:02:06]} Nxd4 {[%emt 0:00:46]} 9. Nxd4 {[%emt 0:00:06]} Ne7 {[%emt 0:01:13] White has an edge.} 10. O-O {[%emt 0:03:09]} O-O {[%emt 0:01:15]} 11. Nb5 {[%emt 0:08:14]} d5 {[%emt 0:05:46] [#]} 12. Bg5 $146 {[%emt 0:02:57]} ({Predecessor:} 12. Bf4 e5 13. Bg5 d4 14. e3 f6 15. exd4 fxg5 16. d5 a6 17. Nc3 Nf5 18. c5 {0-1 (79) Wagner,D (2581)-Osmanodja,F (2293) Playchess.com INT 2020}) 12... d4 {[%emt 0:13:49]} (12... Bd7 $11) 13. Qd3 {[%emt 0:09:16]} e5 {[%emt 0:04:22]} 14. Qa3 $1 {[%emt 0:01:15][%csl LRa7,LRe7]} f6 {[%emt 0:01:06]} 15. Bd2 {[%emt 0:00:12] aiming for Bb4.} Nc6 {[%emt 0:05:58]} 16. Bd5+ {[%emt 0:00:32]} Kh8 {[%emt 0:00:08]} 17. f4 {[%emt 0:03:00]} Qe7 {[%emt 0:05:43]} (17... Bh3 $11 {remains equal.}) 18. Qxe7 $16 {[%emt 0:02:15] 0x0.001ebac80437dp-1022s more active pieces. The black rooks are badly placed.} Nxe7 {[%emt 0:00:24]} 19. Bb4 $36 {[%emt 0:00:29][%mdl 2048] Keeping Black busy.} Nxd5 {[%emt 0:03:45]} 20. Bxf8 {[%emt 0:00:14]} Bxf8 {[%emt 0:00:54]} 21. cxd5 {[%emt 0:00:07] Strongly threatening Nc7.} Bd7 {[%emt 0:00:13]} (21... Bh3 $16 {was worth a try.}) 22. Nc7 $1 $18 {[%emt 0:01:52]} Rc8 {[%emt 0:00:30]} 23. Rac1 {[%emt 0:00:09] Ne6 is the strong threat.} Bd6 {[%emt 0:01:38]} 24. Ne6 {[%emt 0:00:09]} Bxe6 {[%emt 0:00:23]} 25. dxe6 {[%emt 0:00:05][%mdl 4096] Endgame KRR-KRB} Re8 {[%emt 0:00:53]} 26. fxe5 {[%emt 0:00:44]} Bxe5 {[%emt 0:00:35]} 27. b3 {[%emt 0:00:39]} (27. Rf3 $18) 27... Rxe6 {[%emt 0:00:39]} 28. Rc8+ {[%emt 0:00:08]} Kg7 {[%emt 0:00:07]} 29. Rfc1 {[%emt 0:00:30]} Ra6 {[%emt 0:01:13]} 30. R1c2 {[%emt 0:00:10]} Kh6 {[%emt 0:00:05]} (30... h5 $16 31. Rd8 Kh6) 31. Kf2 {[%emt 0:00:25]} Re6 {[%emt 0:00:11]} 32. Kf3 {[%emt 0:00:14]} Kg5 {[%emt 0:00:45]} 33. Ra8 {[%emt 0:00:29]} a6 {[%emt 0:00:24]} 34. Rcc8 {[%emt 0:00:39]} h5 {[%emt 0:00:45]} 35. Re8 {[%emt 0:01:47]} Rc6 {[%emt 0:00:21]} 36. Rac8 {[%emt 0:00:23]} Rc3+ {[%emt 0:00:18]} (36... Rb6 {is a better defense.} 37. Re7 Bd6) 37. Rxc3 $1 {[%emt 0:06:05]} dxc3 {[%emt 0:00:03] KR-KB} 38. e4 {[%emt 0:00:15]} Kh6 {[%emt 0:00:08]} 39. Ke3 {[%emt 0:00:28]} ({Resist} 39. Rc8 $6 Kg7 40. Ke3 Kh6 41. Rh8+ Kg7) 39... g5 $2 {[%emt 0:00:17] [#]} (39... Kg5 {was necessary.} 40. Rg8 Kh6) 40. Re7 $2 {[%emt 0:00:29]} ({White should play} 40. Rxe5 $1 $18 {[%mdl 512]} fxe5 41. Kd3) 40... b5 $2 {[%emt 0:00:09][%mdl 8192]} (40... h4 $11) 41. b4 {[%emt 0:01:18]} ({Less strong is} 41. Kd3 h4 $16) 41... h4 {[%emt 0:00:15] [#] White must now prevent ...c2.} 42. gxh4 {[%emt 0:01:23]} (42. Re6 $1 $18) 42... gxh4 $2 {[%emt 0:00:14][%mdl 8192] [#] A mistake that costs the game.} (42... g4 $16 43. Rf7 Kg6) 43. h3 $1 {[%emt 0:00:07]} Kg5 {[%emt 0:00:07]} 44. Rg7+ {[%emt 0:00:08]} ({Weaker is} 44. Kd3 Kf4 $14) 44... Kh6 {[%emt 0:00:02]} 45. Rg2 {[%emt 0:00:09]} Bd6 {[%emt 0:00:09]} 46. a3 {[%emt 0:00:06]} a5 {[%emt 0:00:16]} (46... Bg3 $18 47. Rg1 Kh5) 47. bxa5 {[%emt 0:00:21] White mates.} Bxa3 {[%emt 0:00:01]} 48. Kd3 {[%emt 0:00:16]} Bb4 {[%emt 0:00:25]} 49. a6 {[%emt 0:00:03]} Bc5 {[%emt 0:00:02]} 50. Kxc3 {[%emt 0:00:06]} Bb6 {[%emt 0:00:12]} 51. Kb4 {[%emt 0:00:04] Weighted Error Value: White=0.21 (precise) /Black=0.61} 1-0